{"text_format":"1","workbook":"xlsx","n_sheets":3,"sheets":["Part One - ESG Expenditures","Part Two - Sources of Match","Lists"],"not_rendered":{"charts":0,"images":0,"macros":1,"external_links":0,"defined_names":0,"comments":0,"pivot_tables":0},"unopened":[],"bounds":{"document_bytes":16777216,"sheet_cells":100000,"rows_first":2000,"rows_last":500,"rows_between":2000,"halvings":0,"cell_chars":16384,"cell_head_chars":4096},"cells_cut":0,"cells_raw":0,"read":"whole","date_system":"1900"}

{"sheet":"Part One - ESG Expenditures","index":0,"n_rows":32,"n_cols":5,"rows_kept":32,"cut":false,"hidden":false,"merged":[]}
["Community Action Agency"]
["Program Year"]
[]
["Homelessness Prevention Expenditures","Expenditure Period January - March","Expenditure Period April - June","Expenditure Period July - September","Expenditure Period October - December"]
["Rental Assistance"]
["Housing Relocation & Stabilization Services - Financial Assistance"]
["Housing Relocation & Stabilization Services - Services"]
["Homelessness Prevention under Emergency Shelter Grant Program"]
["Homelessness Prevention Subtotal",{"$f":"SUM(B5:B8)","v":0},{"$f":"SUM(C5:C8)","v":0},0,0]
[]
["Rapid Re-Housing Expenditures","Expenditure Period January - March","Expenditure Period April - June","Expenditure Period July - September","Expenditure Period October - December"]
["Rental Assistance"]
["Housing Relocation & Stabilization Services - Financial Assistance"]
["Housing Relocation & Stabilization Services - Services"]
["Homelessness Prevention under Emergency Shelter Grant Program"]
["Rapid Rehousing Subtotals",{"$f":"SUM(B12:B15)","v":0},{"$f":"SUM(C12:C15)","v":0},0,0]
[]
["Emergency Shelter Expenditures","Expenditure Period January - March","Expenditure Period April - June","Expenditure Period July - September","Expenditure Period October - December"]
["Essential Services"]
["Operations"]
["Renovations"]
["Major Rehab"]
["Conversion"]
["Emergency Shelter Subtotal",{"$f":"SUM(B19:B23)","v":0},{"$f":"SUM(C19:C23)","v":0},{"$f":"SUM(D19:D23)","v":0},{"$f":"SUM(E19:E23)","v":0}]
[]
["Other Grant Expenditures","Expenditure Period January - March","Expenditure Period April - June","Expenditure Period July - September","Expenditure Period October - December"]
["Street Outreach"]
["HMIS/Data Collection"]
["Administration"]
["Other Subtotal",{"$f":"SUM(B27:B29)","v":0},{"$f":"SUM(C27:C29)","v":0},0,0]
[]
["Total Expenditures Incurred During Reporting Period",{"$f":"SUM(B9+B16+B24+B30)","v":0},{"$f":"SUM(C9+C16+C24+C30)","v":0},0,0]

{"sheet":"Part Two - Sources of Match","index":1,"n_rows":12,"n_cols":7,"rows_kept":12,"cut":false,"hidden":false,"merged":[]}
["Match Source","Name of Program (if not applicable, type N/A)","Eligible ESG Activity","Amount Matched January - March","Amount Matched April - June","Amount Matched July - September","Amount Matched October - December"]
[]
[]
[]
[]
[]
[]
[]
[]
["Total Match During Reporting Period",null,null,{"$f":"SUM(D2:D9)","v":0},{"$f":"SUM(E2:E9)","v":0},0,0]
[]
["Match-to-ESG Difference",{"$f":"(SUM('Part Two - Sources of Match'!D10:G10))-(SUM('Part One - ESG Expenditures'!B32:E32))","v":0}]

{"sheet":"Lists","index":2,"n_rows":18,"n_cols":6,"rows_kept":18,"cut":false,"hidden":true,"merged":[]}
["Community Action Agencies","Expenditure Period","Program Year","Answer","Match Source","use of funds"]
["(select one)","(select one)","(select one)",null,"(select one)","(select one)"]
["ACCESS","July - September","ESGP 19 FY 21","Yes","Eligible HUD Funds","Data Collection"]
["CAO","October - December","ESGP 20","No","Non-HUD Federal Funds","Prevention"]
["CAPECO","January - March","ESGP 20 FY 23",null,"State Government","Rapid Re-Housing"]
["CAT","April - June","ESGP 21",null,"Local Government","Shelter Operations"]
["CCNO","Other (please specify below)","ESGP 21 FY 22",null,"Private Funds","Shelter Services"]
["CiNA",null,"ESGP 22",null,"Other","Street Outreach"]
["CSC",null,"ESGP 22 FY 23",null,"Fees"]
["KLCAS",null,"ESGP 23",null,"Program Income"]
["LCHSC"]
["MCCAC"]
["Mult. Co."]
["NIMPACT"]
["ORCCA"]
["OHDC"]
["UCAN"]
["YCAP"]